[Event "Polofinale MCR junioru 2023"]
[Site "Czech Republic"]
[Date "2023.11.15"]
[Round "6.33"]
[White "Vlcek, Vojtech"]
[Black "Vana, Jan"]
[Result "0-1"]
[TimeControl "90 min per 40 moves + 15 min + 30 sec / move from move 1"]
[WhiteFideId "23728647"]
[BlackFideId "23726016"]
[WhiteElo "1703"]
[BlackElo "1965"]

1. d4 {[%clk 01:31:07]} {[%emt 00:00:12]} Nf6 {[%clk 01:30:35]} {[%emt
00:00:25]} 2. c4 {[%clk 01:31:22]} {[%emt 00:00:15]} e6 {[%clk 01:30:55]}
{[%emt 00:00:10]} 3. Nf3 {[%clk 01:31:08]} {[%emt 00:00:44]} d5 {[%clk
01:30:57]} {[%emt 00:00:28]} 4. cxd5 {[%clk 01:31:27]} {[%emt 00:00:11]} exd5
{[%clk 01:31:19]} {[%emt 00:00:08]} 5. Nc3 {[%clk 01:31:37]} {[%emt 00:00:20]}
c6 {[%clk 01:31:29]} {[%emt 00:00:21]} 6. Bg5 {[%clk 01:31:56]} {[%emt
00:00:10]} h6 {[%clk 01:31:28]} {[%emt 00:00:31]} 7. Bh4 {[%clk 01:31:23]}
{[%emt 00:01:02]} Be6 {[%clk 01:30:57]} {[%emt 00:01:00]} 8. e3 {[%clk
01:31:20]} {[%emt 00:00:34]} Nbd7 {[%clk 01:31:04]} {[%emt 00:00:23]} 9. Bd3
{[%clk 01:31:19]} {[%emt 00:00:30]} g5 {[%clk 01:30:40]} {[%emt 00:00:54]} 10.
Bg3 {[%clk 01:31:38]} {[%emt 00:00:11]} Nh5 {[%clk 01:30:28]} {[%emt 00:00:42]}
11. Be5 {[%clk 01:27:40]} {[%emt 00:04:29]} Nxe5 {[%clk 01:29:20]} {[%emt
00:01:37]} 12. Nxe5 {[%clk 01:25:32]} {[%emt 00:02:38]} Nf6 {[%clk 01:27:01]}
{[%emt 00:02:49]} 13. Qc2 {[%clk 01:23:21]} {[%emt 00:02:41]} Nd7 {[%clk
01:11:11]} {[%emt 00:16:20]} 14. f4 {[%clk 01:20:48]} {[%emt 00:03:03]} Qb6
{[%clk 01:02:19]} {[%emt 00:09:21]} 15. Nxd7 {[%clk 01:06:57]} {[%emt
00:14:22]} Bxd7 {[%clk 01:01:18]} {[%emt 00:01:31]} 16. fxg5 {[%clk 01:05:07]}
{[%emt 00:02:19]} hxg5 {[%clk 00:58:20]} {[%emt 00:03:28]} 17. O-O-O {[%clk
01:04:27]} {[%emt 00:01:10]} Qa5 {[%clk 00:46:16]} {[%emt 00:12:34]} 18. h3
{[%clk 00:50:30]} {[%emt 00:14:27]} Bb4 {[%clk 00:29:58]} {[%emt 00:16:47]} 19.
a3 {[%clk 00:44:58]} {[%emt 00:06:03]} Be7 {[%clk 00:26:43]} {[%emt 00:03:44]}
20. Kb1 {[%clk 00:40:34]} {[%emt 00:04:54]} b5 {[%clk 00:20:12]} {[%emt
00:07:01]} 21. Na2 {[%clk 00:36:52]} {[%emt 00:04:12]} Qb6 {[%clk 00:16:53]}
{[%emt 00:03:50]} 22. Bf5 {[%clk 00:36:15]} {[%emt 00:01:06]} Be6 {[%clk
00:10:48]} {[%emt 00:06:35]} 23. Rhf1 {[%clk 00:36:02]} {[%emt 00:00:43]} a5
{[%clk 00:09:23]} {[%emt 00:01:55]} 24. Rc1 {[%clk 00:35:49]} {[%emt 00:00:42]}
Ra6 {[%clk 00:07:24]} {[%emt 00:02:30]} 25. Bxe6 {[%clk 00:35:00]} {[%emt
00:01:19]} fxe6 {[%clk 00:07:45]} {[%emt 00:00:09]} 26. Qg6+ {[%clk 00:35:20]}
{[%emt 00:00:08]} Kd7 {[%clk 00:08:08]} {[%emt 00:00:08]} 27. Rf7 {[%clk
00:35:33]} {[%emt 00:00:17]} Re8 {[%clk 00:06:17]} {[%emt 00:02:21]} 28. Qxg5
{[%clk 00:30:01]} {[%emt 00:06:01]} b4 {[%clk 00:04:49]} {[%emt 00:01:58]} 29.
a4 {[%clk 00:29:59]} {[%emt 00:00:33]} Raa8 {[%clk 00:03:34]} {[%emt 00:01:45]}
30. Qg6 {[%clk 00:29:29]} {[%emt 00:01:00]} Rg8 {[%clk 00:02:41]} {[%emt
00:01:23]} 31. Qh7 {[%clk 00:29:48]} {[%emt 00:00:11]} Qd8 {[%clk 00:02:14]}
{[%emt 00:00:57]} 32. Qc2 {[%clk 00:28:35]} {[%emt 00:01:43]} Rc8 {[%clk
00:01:24]} {[%emt 00:01:21]} 33. Rcf1 {[%clk 00:26:47]} {[%emt 00:02:17]} Qb6
{[%clk 00:00:48]} {[%emt 00:01:06]} 34. Nc1 {[%clk 00:25:23]} {[%emt 00:01:54]}
Rg3 {[%clk 00:00:37]} {[%emt 00:00:41]} 35. Qf2 {[%clk 00:25:18]} {[%emt
00:00:35]} Rcg8 {[%clk 00:00:43]} {[%emt 00:00:25]} 36. Qf6 {[%clk 00:23:55]}
{[%emt 00:01:53]} Qd8 {[%clk 00:00:34]} {[%emt 00:00:39]} 37. Qe5 {[%clk
00:22:18]} {[%emt 00:02:01]} Qb8 {[%clk 00:00:34]} {[%emt 00:00:35]} 38. Nd3
{[%clk 00:21:03]} {[%emt 00:01:46]} Qxe5 {[%clk 00:00:40]} {[%emt 00:00:24]} 39.
Nxe5+ {[%clk 00:21:21]} {[%emt 00:00:12]} Kd6 {[%clk 00:00:39]} {[%emt
00:00:31]} 40. Rc1 {[%clk 00:13:21]} {[%emt 00:08:30]} Rc8 {[%clk 00:00:32]}
{[%emt 00:00:36]} 41. Rc5 {[%clk 00:11:33]} {[%emt 00:02:17]} Rxg2 {[%clk
00:13:11]} {[%emt 00:03:22]} 42. Rxa5 {[%clk 00:27:48]} {[%emt 00:00:16]} b3
{[%clk 00:12:06]} {[%emt 00:01:35]} 43. Kc1 {[%clk 00:28:14]} {[%emt 00:00:04]}
Rc2+ {[%clk 00:11:45]} {[%emt 00:00:51]} 44. Kd1 {[%clk 00:22:40]} {[%emt
00:06:03]} Rg8 {[%clk 00:09:34]} {[%emt 00:02:41]} 45. Rf1 {[%clk 00:20:47]}
{[%emt 00:02:24]} Rgg2 {[%clk 00:05:30]} {[%emt 00:04:34]} 46. Nf7+ {[%clk
00:17:59]} {[%emt 00:03:19]} Kc7 {[%clk 00:05:03]} {[%emt 00:00:57]} 47. Ra7+
{[%clk 00:18:23]} {[%emt 00:00:05]} Kb6 {[%clk 00:05:08]} {[%emt 00:00:26]} 48.
Rxe7 {[%clk 00:18:29]} {[%emt 00:00:23]} Rxb2 {[%clk 00:05:24]} {[%emt
00:00:14]} 49. a5+ {[%clk 00:18:17]} {[%emt 00:00:42]} Ka6 {[%clk 00:05:33]}
{[%emt 00:00:21]} 50. Kc1 {[%clk 00:13:44]} {[%emt 00:05:03]} Rgc2+ {[%clk
00:05:50]} {[%emt 00:00:13]} 51. Kd1 {[%clk 00:14:05]} {[%emt 00:00:09]} Rb1#
{[%emt 00:00:07]} 52. Ne5 {[%emt 00:00:43]} 0-1

[Event "Polofinale MCR junioru 2023"]
[Site "Czech Republic"]
[Date "2023.11.15"]
[Round "6.34"]
[White "Urbansky, Stepan"]
[Black "Jurok, Vojtech"]
[Result "1/2-1/2"]
[TimeControl "90 min per 40 moves + 15 min + 30 sec / move from move 1"]
[WhiteFideId "23761741"]
[BlackFideId "23741023"]
[WhiteElo "1675"]
[BlackElo "1801"]

1. e4 {[%clk 01:30:56]} {[%emt 00:00:03]} c5 {[%clk 01:30:53]} {[%emt
00:00:08]} 2. Nf3 {[%clk 01:31:09]} {[%emt 00:00:16]} g6 {[%clk 01:31:12]}
{[%emt 00:00:13]} 3. d4 {[%clk 01:31:10]} {[%emt 00:00:28]} cxd4 {[%clk
01:31:35]} {[%emt 00:00:07]} 4. Qxd4 {[%clk 01:30:50]} {[%emt 00:00:49]} Nf6
{[%clk 01:31:50]} {[%emt 00:00:17]} 5. Nc3 {[%clk 01:30:06]} {[%emt 00:01:13]}
Nc6 {[%clk 01:30:55]} {[%emt 00:01:25]} 6. Qd2 {[%clk 01:30:21]} {[%emt
00:00:14]} Bg7 {[%clk 01:27:33]} {[%emt 00:03:53]} 7. Bd3 {[%clk 01:30:04]}
{[%emt 00:00:46]} O-O {[%clk 01:26:58]} {[%emt 00:01:05]} 8. b3 {[%clk
01:29:55]} {[%emt 00:00:39]} d5 {[%clk 01:23:31]} {[%emt 00:03:57]} 9. exd5
{[%clk 01:28:13]} {[%emt 00:02:12]} Nxd5 {[%clk 01:23:04]} {[%emt 00:00:58]} 10.
Bb2 {[%clk 01:28:31]} {[%emt 00:00:12]} Bg4 {[%clk 01:10:35]} {[%emt 00:12:59]}
11. O-O-O {[%clk 01:10:10]} {[%emt 00:18:51]} Bxf3 {[%clk 01:06:25]} {[%emt
00:04:41]} 12. gxf3 {[%clk 01:10:15]} {[%emt 00:00:25]} Ndb4 {[%clk 00:56:01]}
{[%emt 00:10:53]} 13. Qe2 {[%clk 01:05:45]} {[%emt 00:05:00]} Bxc3 {[%clk
00:41:03]} {[%emt 00:15:29]} 14. Bxc3 {[%clk 01:05:22]} {[%emt 00:00:53]} Nxa2+
{[%clk 00:41:26]} {[%emt 00:00:07]} 15. Kb2 {[%clk 01:05:41]} {[%emt 00:00:40]}
Nxc3 {[%clk 00:41:56]} {[%emt 00:00:30]} 16. Kxc3 {[%clk 01:06:05]} {[%emt
00:00:06]} Qd4+ {[%clk 00:40:13]} {[%emt 00:02:14]} 17. Kd2 {[%clk 01:06:01]}
{[%emt 00:00:33]} Nb4 {[%clk 00:31:45]} {[%emt 00:08:58]} 18. Ke1 {[%clk
01:02:56]} {[%emt 00:03:35]} Nxd3+ {[%clk 00:31:11]} {[%emt 00:01:04]} 19. Qxd3
{[%clk 01:01:34]} {[%emt 00:01:52]} Qxd3 {[%clk 00:30:51]} {[%emt 00:00:50]} 20.
Rxd3 {[%clk 01:01:58]} {[%emt 00:00:06]} Rfd8 {[%clk 00:29:42]} {[%emt
00:01:39]} 21. Rxd8+ {[%clk 00:59:47]} {[%emt 00:02:41]} Rxd8 {[%clk 00:30:10]}
{[%emt 00:00:01]} 22. Ke2 {[%clk 00:59:58]} {[%emt 00:00:19]} Kg7 {[%clk
00:28:33]} {[%emt 00:02:08]} 23. Ra1 {[%clk 00:59:11]} {[%emt 00:01:16]} a6
{[%clk 00:28:51]} {[%emt 00:00:12]} 24. Ra4 {[%clk 00:58:50]} {[%emt 00:00:51]}
Rd6 {[%clk 00:24:18]} {[%emt 00:05:03]} 25. c4 {[%clk 00:53:29]} {[%emt
00:05:51]} b5 {[%clk 00:22:30]} {[%emt 00:02:18]} 26. cxb5 {[%clk 00:53:23]}
{[%emt 00:00:36]} axb5 {[%clk 00:22:54]} {[%emt 00:00:07]} 27. Ra7 {[%clk
00:52:39]} {[%emt 00:01:13]} Kf6 {[%clk 00:20:18]} {[%emt 00:03:06]} 28. f4
{[%clk 00:42:12]} {[%emt 00:10:58]} Rd4 {[%clk 00:17:46]} {[%emt 00:03:01]} 29.
Rb7 {[%clk 00:35:12]} {[%emt 00:07:31]} Rb4 {[%clk 00:17:08]} {[%emt 00:01:08]}
30. Rb6+ {[%clk 00:35:36]} {[%emt 00:00:07]} e6 {[%clk 00:16:37]} {[%emt
00:01:01]} 31. Kd3 {[%clk 00:32:58]} {[%emt 00:03:07]} Rxb3+ {[%clk 00:16:50]}
{[%emt 00:00:17]} 32. Kd4 {[%clk 00:33:27]} {[%emt 00:00:01]} Rb4+ {[%clk
00:16:17]} {[%emt 00:01:04]} 33. Ke3 {[%clk 00:33:44]} {[%emt 00:00:13]} Rb2
{[%clk 00:15:49]} {[%emt 00:00:57]} 34. Rb7 {[%clk 00:33:54]} {[%emt 00:00:21]}
b4 {[%clk 00:15:38]} {[%emt 00:00:41]} 35. Rb5 {[%clk 00:34:04]} {[%emt
00:00:20]} h5 {[%clk 00:13:56]} {[%emt 00:02:12]} 36. h4 {[%clk 00:33:20]}
{[%emt 00:01:13]} b3 {[%clk 00:14:06]} {[%emt 00:00:21]} 37. Kf3 {[%clk
00:32:02]} {[%emt 00:01:48]} Rb1 {[%clk 00:13:34]} {[%emt 00:01:02]} 38. Kg3
{[%clk 00:32:03]} {[%emt 00:00:28]} Ke7 {[%clk 00:12:40]} {[%emt 00:01:24]} 39.
Kf3 {[%clk 00:31:18]} {[%emt 00:01:13]} Kd6 {[%clk 00:10:58]} {[%emt 00:02:14]}
40. Rb8 {[%clk 00:29:16]} {[%emt 00:02:32]} Kc5 {[%clk 00:06:13]} {[%emt
00:05:15]} 41. Ke3 {[%clk 00:29:06]} {[%emt 00:00:40]} Kd5 {[%clk 00:14:22]}
{[%emt 00:07:51]} 42. Rd8+ {[%clk 00:43:40]} {[%emt 00:01:57]} Kc6 {[%clk
00:14:25]} {[%emt 00:00:25]} 43. Rb8 {[%clk 00:42:19]} {[%emt 00:01:51]} Rh1
{[%clk 00:12:53]} {[%emt 00:02:02]} 44. Rxb3 {[%clk 00:41:39]} {[%emt
00:01:11]} Rxh4 {[%clk 00:10:38]} {[%emt 00:02:45]} 45. Ke4 {[%clk 00:40:06]}
{[%emt 00:02:02]} Kd6 {[%clk 00:10:49]} {[%emt 00:00:19]} 46. Rb7 {[%clk
00:39:35]} {[%emt 00:01:02]} e5 {[%clk 00:07:28]} {[%emt 00:03:51]} 47. Rxf7
{[%clk 00:35:22]} {[%emt 00:04:41]} Rxf4+ {[%clk 00:07:39]} {[%emt 00:00:20]}
48. Rxf4 {[%clk 00:35:06]} {[%emt 00:00:46]} exf4 {[%clk 00:08:08]} {[%emt
00:00:01]} 49. Kxf4 {[%clk 00:29:34]} {[%emt 00:06:02]} h4 {[%clk 00:04:37]}
{[%emt 00:04:01]} 50. Kg4 {[%clk 00:26:56]} {[%emt 00:03:07]} g5 {[%clk
00:03:50]} {[%emt 00:01:18]} 51. f4 {[%clk 00:26:50]} {[%emt 00:00:36]} h3
{[%clk 00:03:27]} {[%emt 00:00:54]} 52. Kxh3 {[%clk 00:26:53]} {[%emt
00:00:26]} gxf4 {[%clk 00:03:56]} {[%emt 00:00:01]} 53. Kg4 {[%clk 00:26:45]}
{[%emt 00:00:38]} Ke5 {[%clk 00:04:20]} {[%emt 00:00:06]} 54. Kf3 {[%clk
00:27:02]} {[%emt 00:00:13]} Kf5 {[%clk 00:04:47]} {[%emt 00:00:04]} 55. Kf2
{[%clk 00:27:20]} {[%emt 00:00:12]} Ke4 {[%clk 00:05:11]} {[%emt 00:00:06]} 56.
Ke2 {[%clk 00:27:37]} {[%emt 00:00:13]} Ke5 {[%clk 00:04:56]} {[%emt 00:00:45]}
57. Kf3 {[%clk 00:27:42]} {[%emt 00:00:25]} Kf5 {[%clk 00:05:25]} {[%emt
00:00:01]} 58. Kf2 {[%clk 00:27:30]} {[%emt 00:00:42]} Ke5 {[%emt 00:00:08]}
1/2-1/2

[Event "Polofinale MCR junioru 2023"]
[Site "Czech Republic"]
[Date "2023.11.15"]
[Round "6.35"]
[White "Lieber, Lukas"]
[Black "Meca, Viktor"]
[Result "1/2-1/2"]
[TimeControl "90 min per 40 moves + 15 min + 30 sec / move from move 1"]
[WhiteFideId "23700688"]
[BlackFideId "23739800"]
[WhiteElo "1959"]
[BlackElo "1642"]

1. Nf3 {[%clk 01:30:47]} {[%emt 00:00:11]} d5 {[%clk 01:30:49]} {[%emt
00:00:13]} 2. e3 {[%clk 01:31:07]} {[%emt 00:00:08]} Nf6 {[%clk 01:30:39]}
{[%emt 00:00:40]} 3. c4 {[%clk 01:31:35]} {[%emt 00:00:02]} c6 {[%clk
01:30:43]} {[%emt 00:00:27]} 4. b3 {[%clk 01:32:02]} {[%emt 00:00:03]} g6
{[%clk 01:30:56]} {[%emt 00:00:18]} 5. Bb2 {[%clk 01:32:20]} {[%emt 00:00:11]}
Bg7 {[%clk 01:31:20]} {[%emt 00:00:06]} 6. d4 {[%clk 01:32:36]} {[%emt
00:00:15]} O-O {[%clk 01:28:54]} {[%emt 00:02:56]} 7. h3 {[%clk 01:32:03]}
{[%emt 00:01:01]} Ne4 {[%clk 01:26:02]} {[%emt 00:03:24]} 8. Nbd2 {[%clk
01:31:50]} {[%emt 00:00:42]} Qa5 {[%clk 01:24:42]} {[%emt 00:01:50]} 9. a3
{[%clk 01:31:45]} {[%emt 00:00:35]} f5 {[%clk 01:24:40]} {[%emt 00:00:32]} 10.
b4 {[%clk 01:31:28]} {[%emt 00:00:47]} Qc7 {[%clk 01:23:01]} {[%emt 00:02:08]}
11. Qc2 {[%clk 01:30:59]} {[%emt 00:00:59]} Nxd2 {[%clk 01:13:12]} {[%emt
00:10:19]} 12. Qxd2 {[%clk 01:31:05]} {[%emt 00:00:23]} f4 {[%clk 01:13:28]}
{[%emt 00:00:14]} 13. Bd3 {[%clk 01:30:52]} {[%emt 00:00:42]} Bh6 {[%clk
01:13:20]} {[%emt 00:00:38]} 14. O-O {[%clk 01:29:20]} {[%emt 00:02:02]} Nd7
{[%clk 01:08:43]} {[%emt 00:05:07]} 15. Rac1 {[%clk 01:28:57]} {[%emt
00:00:53]} fxe3 {[%clk 01:03:04]} {[%emt 00:06:09]} 16. fxe3 {[%clk 01:29:24]}
{[%emt 00:00:02]} Nf6 {[%clk 01:01:56]} {[%emt 00:01:38]} 17. Ne5 {[%clk
01:29:14]} {[%emt 00:00:41]} Be6 {[%clk 00:49:16]} {[%emt 00:13:09]} 18. b5
{[%clk 01:28:09]} {[%emt 00:01:35]} Nd7 {[%clk 00:45:51]} {[%emt 00:03:55]} 19.
Qe2 {[%clk 01:26:47]} {[%emt 00:01:50]} Nxe5 {[%clk 00:41:34]} {[%emt
00:04:49]} 20. dxe5 {[%clk 01:27:03]} {[%emt 00:00:14]} Rxf1+ {[%clk 00:41:36]}
{[%emt 00:00:28]} 21. Rxf1 {[%clk 01:27:22]} {[%emt 00:00:10]} Rf8 {[%clk
00:39:07]} {[%emt 00:03:00]} 22. Rxf8+ {[%clk 01:27:11]} Kxf8 {[%clk 00:39:24]}
{[%emt 00:00:53]} 23. Kh2 {[%clk 01:22:29]} {[%emt 00:05:12]} Bg7 {[%clk
00:31:55]} {[%emt 00:07:59]} 24. cxd5 {[%clk 01:21:23]} {[%emt 00:01:36]} Bxe5+
{[%clk 00:29:35]} {[%emt 00:02:50]} 25. Kh1 {[%clk 01:21:49]} {[%emt 00:00:03]}
cxd5 {[%clk 00:26:33]} {[%emt 00:03:32]} 26. e4 {[%clk 01:21:28]} {[%emt
00:00:50]} d4 {[%clk 00:26:21]} {[%emt 00:00:43]} 27. Qf2+ {[%clk 01:21:53]}
{[%emt 00:00:03]} Kg8 {[%clk 00:26:15]} {[%emt 00:00:37]} 28. Bxd4 {[%clk
01:20:25]} {[%emt 00:01:59]} Bxd4 {[%clk 00:23:13]} {[%emt 00:03:31]} 29. Qxd4
{[%clk 01:20:52]} {[%emt 00:00:03]} Qc1+ {[%clk 00:23:35]} {[%emt 00:00:08]} 30.
Kh2 {[%clk 01:20:51]} {[%emt 00:00:30]} Qxa3 {[%clk 00:22:58]} {[%emt
00:01:08]} 31. e5 {[%clk 01:20:02]} {[%emt 00:01:19]} Qb3 {[%clk 00:20:48]}
{[%emt 00:02:40]} 32. Be2 {[%clk 01:18:26]} {[%emt 00:02:05]} Qd5 {[%clk
00:15:52]} {[%emt 00:05:27]} 33. Qa1 {[%clk 01:18:53]} {[%emt 00:00:02]} b6
{[%clk 00:13:44]} {[%emt 00:02:38]} 34. Kh1 {[%clk 01:17:37]} {[%emt 00:01:45]}
Qb7 {[%clk 00:09:37]} {[%emt 00:04:38]} 35. Bf3 {[%clk 01:17:19]} {[%emt
00:00:48]} Qc7 {[%clk 00:07:37]} {[%emt 00:02:31]} 36. Qd4 {[%clk 01:15:14]}
{[%emt 00:02:33]} Qd7 {[%clk 00:06:10]} {[%emt 00:01:58]} 37. Qh4 {[%clk
01:13:43]} {[%emt 00:02:01]} Qxb5 {[%clk 00:02:31]} {[%emt 00:04:08]} 38. Qxe7
{[%clk 01:13:30]} {[%emt 00:00:43]} Qd7 {[%clk 00:02:24]} {[%emt 00:00:37]} 39.
Qf6 {[%clk 01:12:38]} {[%emt 00:01:21]} Qf7 {[%clk 00:02:13]} {[%emt 00:00:42]}
40. Qd8+ {[%clk 01:12:15]} {[%emt 00:00:53]} Kg7 {[%emt 00:01:27]} 41. Kg1
{[%clk 01:11:29]} {[%emt 00:00:08]} Bxh3 {[%clk 00:02:13]} {[%emt 00:00:41]} 42.
gxh3 {[%clk 01:11:10]} {[%emt 00:00:49]} Qxf3 {[%clk 00:02:34]} {[%emt
00:00:09]} 43. Qd7+ {[%clk 01:11:33]} {[%emt 00:00:07]} Kh6 {[%clk 00:02:17]}
{[%emt 00:00:47]} 44. e6 {[%clk 01:10:51]} {[%emt 00:01:13]} Qg3+ {[%clk
00:02:25]} {[%emt 00:00:22]} 45. Kf1 {[%clk 01:10:46]} {[%emt 00:00:34]} Qxh3+
{[%clk 00:02:45]} {[%emt 00:00:10]} 46. Ke2 {[%clk 01:11:09]} {[%emt 00:00:07]}
Qf5 {[%clk 00:01:09]} {[%emt 00:02:06]} 47. Qd2+ {[%clk 01:10:02]} {[%emt
00:01:37]} Kg7 {[%clk 00:01:05]} {[%emt 00:00:35]} 48. Qd4+ {[%clk 01:08:35]}
{[%emt 00:01:56]} Qf6 {[%clk 00:01:15]} {[%emt 00:00:21]} 49. Qd7+ {[%clk
01:08:05]} {[%emt 00:01:00]} Kf8 {[%clk 00:01:32]} {[%emt 00:00:14]} 50. Qc8+
{[%clk 01:07:45]} {[%emt 00:00:49]} Ke7 {[%clk 00:01:30]} {[%emt 00:00:32]} 51.
Qd7+ {[%clk 01:07:39]} {[%emt 00:00:36]} Kf8 {[%clk 00:01:49]} {[%emt
00:00:10]} 52. Qc8+ {[%clk 01:03:32]} {[%emt 00:04:37]} Ke7 {[%emt 00:01:07]}
1/2-1/2

[Event "Polofinale MCR junioru 2023"]
[Site "Czech Republic"]
[Date "2023.11.15"]
[Round "6.36"]
[White "Pistej, Tomas"]
[Black "Slaby, Matej"]
[Result "1/2-1/2"]
[TimeControl "90 min per 40 moves + 15 min + 30 sec / move from move 1"]
[WhiteFideId "23750740"]
[BlackFideId "23734876"]
[WhiteElo "1502"]
[BlackElo "1940"]

1. e4 {[%clk 01:30:55]} {[%emt 00:00:04]} d5 {[%clk 01:30:54]} {[%emt
00:00:06]} 2. exd5 {[%clk 01:31:19]} {[%emt 00:00:06]} Qxd5 {[%clk 01:31:19]}
{[%emt 00:00:04]} 3. Nf3 {[%clk 01:31:41]} {[%emt 00:00:08]} Nf6 {[%clk
01:31:19]} {[%emt 00:00:30]} 4. d4 {[%clk 01:31:56]} {[%emt 00:00:15]} Bg4
{[%clk 01:29:22]} {[%emt 00:02:27]} 5. Be2 {[%clk 01:32:17]} {[%emt 00:00:09]}
e6 {[%clk 01:28:52]} {[%emt 00:01:01]} 6. O-O {[%clk 01:32:07]} {[%emt
00:00:39]} Be7 {[%clk 01:27:43]} {[%emt 00:01:39]} 7. h3 {[%clk 01:31:42]}
{[%emt 00:00:55]} Bh5 {[%clk 01:27:38]} {[%emt 00:00:36]} 8. c4 {[%clk
01:30:13]} {[%emt 00:01:59]} Qd8 {[%clk 01:24:36]} {[%emt 00:03:32]} 9. Nc3
{[%clk 01:29:13]} {[%emt 00:01:29]} c6 {[%clk 01:23:50]} {[%emt 00:01:16]} 10.
Be3 {[%clk 01:24:52]} {[%emt 00:04:51]} O-O {[%clk 01:18:40]} {[%emt 00:05:41]}
11. Ne5 {[%clk 01:20:51]} {[%emt 00:04:30]} Bxe2 {[%clk 01:18:48]} {[%emt
00:00:22]} 12. Qxe2 {[%clk 01:14:41]} {[%emt 00:06:40]} Nbd7 {[%clk 01:19:14]}
{[%emt 00:00:05]} 13. Rad1 {[%clk 01:13:39]} {[%emt 00:01:32]} Qc7 {[%clk
00:59:20]} {[%emt 00:20:24]} 14. f4 {[%clk 01:03:24]} {[%emt 00:10:44]} Rfe8
{[%clk 00:55:15]} {[%emt 00:04:36]} 15. g4 {[%clk 00:55:12]} {[%emt 00:08:41]}
g6 {[%clk 00:55:13]} {[%emt 00:00:33]} 16. Qf3 {[%clk 00:48:32]} {[%emt
00:07:10]} Bf8 {[%clk 00:52:58]} {[%emt 00:02:45]} 17. Nxd7 {[%clk 00:37:00]}
{[%emt 00:12:02]} Qxd7 {[%clk 00:51:51]} {[%emt 00:01:38]} 18. Rd2 {[%clk
00:33:46]} {[%emt 00:03:42]} Rad8 {[%clk 00:22:00]} {[%emt 00:30:22]} 19. Bf2
{[%clk 00:24:39]} {[%emt 00:09:37]} Be7 {[%clk 00:16:06]} {[%emt 00:06:25]} 20.
Bh4 {[%clk 00:20:57]} {[%emt 00:04:11]} h6 {[%clk 00:10:28]} {[%emt 00:06:08]}
21. Kh1 {[%clk 00:11:33]} {[%emt 00:09:53]} Nd5 {[%clk 00:02:44]} {[%emt
00:08:15]} 22. Bxe7 {[%clk 00:07:58]} {[%emt 00:04:05]} Nxe7 {[%clk 00:03:13]}
{[%emt 00:00:02]} 23. Ne4 {[%clk 00:08:02]} {[%emt 00:00:25]} Kg7 {[%clk
00:03:29]} {[%emt 00:00:14]} 24. g5 {[%clk 00:07:01]} {[%emt 00:01:30]} Ng8
{[%clk 00:03:24]} {[%emt 00:00:36]} 25. Qg3 {[%clk 00:05:10]} {[%emt 00:02:21]}
Qe7 {[%clk 00:02:12]} {[%emt 00:01:43]} 26. h4 {[%clk 00:03:11]} {[%emt
00:02:28]} Rd7 {[%clk 00:00:49]} {[%emt 00:01:53]} 27. c5 {[%clk 00:02:21]}
{[%emt 00:01:19]} Red8 {[%clk 00:00:53]} {[%emt 00:00:27]} 28. Nd6 {[%clk
00:01:50]} {[%emt 00:01:01]} Qf8 {[%clk 00:00:35]} {[%emt 00:00:48]} 29. h5
{[%clk 00:00:58]} {[%emt 00:01:21]} gxh5 {[%clk 00:00:32]} {[%emt 00:00:34]} 30.
gxh6+ {[%clk 00:00:42]} {[%emt 00:00:46]} Kh8 {[%clk 00:00:45]} {[%emt
00:00:17]} 31. Qg5 {[%clk 00:00:35]} {[%emt 00:00:36]} Qxh6 {[%clk 00:00:33]}
{[%emt 00:00:43]} 32. Nxf7+ {[%clk 00:00:35]} {[%emt 00:00:30]} Rxf7 {[%clk
00:01:02]} 33. Qxd8 {[%clk 00:00:48]} {[%emt 00:00:18]} Rxf4 {[%clk 00:01:31]}
{[%emt 00:00:01]} 34. Rxf4 {[%clk 00:00:40]} {[%emt 00:00:38]} Qxf4 {[%clk
00:02:00]} {[%emt 00:00:01]} 35. Rg2 {[%clk 00:00:36]} {[%emt 00:00:33]} Qf1+
{[%clk 00:00:52]} {[%emt 00:01:38]} 36. Kh2 {[%emt 00:00:30]} Qf4+ {[%emt
00:00:01]} 37. Kh3 {[%emt 00:00:03]} Qf3+ {[%emt 00:00:14]} 1/2-1/2